[Event "Late-Titled-Tuesday-Blitz-January-16-2024"]
[Site "Chess.com"]
[Date "2024.01.16"]
[Round "2"]
[White "jk13"]
[Black "RianKapriaga"]
[Result "1-0"]
[WhiteElo "2683"]
[BlackElo "2375"]
[TimeControl "180+1"]
[EndTime "14:17:42 PST"]
[Termination "jk13 won on time"]

1. e4 {[%clk 0:03:00.9]} 1... c6 {[%clk 0:02:59.7]} 2. Nc3 {[%clk 0:03:00.7]}
2... d5 {[%clk 0:02:59.8]} 3. Nf3 {[%clk 0:03:01]} 3... Bg4 {[%clk 0:02:59.2]}
4. h3 {[%clk 0:03:01.3]} 4... Bxf3 {[%clk 0:02:58.9]} 5. Qxf3 {[%clk 0:03:02.2]}
5... Nf6 {[%clk 0:02:58.8]} 6. a3 {[%clk 0:03:02.8]} 6... dxe4 {[%clk
0:02:57.7]} 7. Nxe4 {[%clk 0:03:03.7]} 7... Nxe4 {[%clk 0:02:56.3]} 8. Qxe4
{[%clk 0:03:04.6]} 8... e6 {[%clk 0:02:54.9]} 9. d4 {[%clk 0:03:02.7]} 9... Nd7
{[%clk 0:02:53.2]} 10. Bc4 {[%clk 0:02:58.4]} 10... Bd6 {[%clk 0:02:50.4]} 11.
O-O {[%clk 0:02:55.3]} 11... O-O {[%clk 0:02:48.6]} 12. Re1 {[%clk 0:02:51.5]}
12... Nf6 {[%clk 0:02:45.7]} 13. Qf3 {[%clk 0:02:47.7]} 13... h6 {[%clk
0:02:44.5]} 14. Bb3 {[%clk 0:02:40.5]} 14... Rc8 {[%clk 0:02:30.4]} 15. Be3
{[%clk 0:02:37.3]} 15... Bb8 {[%clk 0:02:28.1]} 16. Rad1 {[%clk 0:02:35.4]}
16... a6 {[%clk 0:02:25]} 17. c4 {[%clk 0:02:30.9]} 17... Re8 {[%clk 0:02:06.1]}
18. Bc2 {[%clk 0:02:22.8]} 18... b5 {[%clk 0:01:56.9]} 19. b3 {[%clk 0:02:17.7]}
19... a5 {[%clk 0:01:55.6]} 20. a4 {[%clk 0:02:17]} 20... Nh7 {[%clk 0:01:14]}
21. Bc1 {[%clk 0:02:01.6]} 21... Qc7 {[%clk 0:01:08.8]} 22. g3 {[%clk
0:01:55.3]} 22... Nf6 {[%clk 0:01:01.2]} 23. Bxh6 {[%clk 0:01:53.1]} 23... Nh7
{[%clk 0:00:29.7]} 24. Bf4 {[%clk 0:01:38]} 24... Qe7 {[%clk 0:00:26.9]} 25. Bd2
{[%clk 0:01:30.5]} 25... Nf8 {[%clk 0:00:24.8]} 26. Bxa5 {[%clk 0:01:21.2]}
26... bxa4 {[%clk 0:00:23.5]} 27. bxa4 {[%clk 0:01:21]} 27... Qg5 {[%clk
0:00:19.6]} 28. Bd2 {[%clk 0:01:18.7]} 28... Qe7 {[%clk 0:00:18.1]} 29. h4
{[%clk 0:01:12]} 29... Red8 {[%clk 0:00:17.3]} 30. Bg5 {[%clk 0:01:10.8]} 30...
f6 {[%clk 0:00:16.1]} 31. Bc1 {[%clk 0:01:06]} 31... Qf7 {[%clk 0:00:15.9]} 32.
Be4 {[%clk 0:00:56.9]} 32... c5 {[%clk 0:00:15.2]} 33. d5 {[%clk 0:00:57.4]}
33... Be5 {[%clk 0:00:10.9]} 34. dxe6 {[%clk 0:00:53]} 34... Nxe6 {[%clk
0:00:10.3]} 35. Qf5 {[%clk 0:00:51.1]} 35... Nd4 {[%clk 0:00:07]} 36. Qh7+
{[%clk 0:00:50.6]} 36... Kf8 {[%clk 0:00:07.4]} 37. Be3 {[%clk 0:00:41]} 37...
Qe6 {[%clk 0:00:03.2]} 38. Bxd4 {[%clk 0:00:37.8]} 38... Rxd4 {[%clk 0:00:03]}
39. Bd5 {[%clk 0:00:33.6]} 1-0

[Event "Late-Titled-Tuesday-Blitz-January-16-2024"]
[Site "Chess.com"]
[Date "2024.01.16"]
[Round "2"]
[White "JCVanDamme10"]
[Black "chegueps"]
[Result "0-1"]
[WhiteElo "2323"]
[BlackElo "2695"]
[TimeControl "180+1"]
[EndTime "14:17:45 PST"]
[Termination "chegueps won by resignation"]

1. e4 {[%clk 0:02:57.5]} 1... Nf6 {[%clk 0:02:58.7]} 2. e5 {[%clk 0:02:55.4]}
2... Nd5 {[%clk 0:02:58.7]} 3. d4 {[%clk 0:02:56.1]} 3... d6 {[%clk 0:02:59.1]}
4. Nf3 {[%clk 0:02:55.4]} 4... g6 {[%clk 0:02:59]} 5. Be2 {[%clk 0:02:52.7]}
5... Bg7 {[%clk 0:02:57.8]} 6. O-O {[%clk 0:02:53.2]} 6... O-O {[%clk
0:02:57.6]} 7. exd6 {[%clk 0:02:50]} 7... cxd6 {[%clk 0:02:57.5]} 8. c4 {[%clk
0:02:48.1]} 8... Nb6 {[%clk 0:02:54.9]} 9. Be3 {[%clk 0:02:44.3]} 9... Bg4
{[%clk 0:02:42.4]} 10. Nc3 {[%clk 0:02:38.8]} 10... Nc6 {[%clk 0:02:40.7]} 11.
b3 {[%clk 0:02:38.5]} 11... d5 {[%clk 0:02:38.1]} 12. cxd5 {[%clk 0:02:24.9]}
12... Nxd5 {[%clk 0:02:37]} 13. Nxd5 {[%clk 0:02:25.4]} 13... Qxd5 {[%clk
0:02:37.4]} 14. h3 {[%clk 0:02:20.9]} 14... Bf5 {[%clk 0:02:31.5]} 15. Bc4
{[%clk 0:02:19.6]} 15... Qd6 {[%clk 0:02:26]} 16. Rc1 {[%clk 0:02:15.6]} 16...
Rfd8 {[%clk 0:02:16.1]} 17. d5 {[%clk 0:02:14.9]} 17... Nb4 {[%clk 0:01:56.9]}
18. a3 {[%clk 0:01:43]} 18... Na2 {[%clk 0:01:44.8]} 19. Ra1 {[%clk 0:01:42.3]}
19... Nc3 {[%clk 0:01:42.9]} 20. Qe1 {[%clk 0:01:33.9]} 20... b5 {[%clk
0:01:39.9]} 21. Bd2 {[%clk 0:01:24.1]} 21... Nxd5 {[%clk 0:00:42.1]} 22. Bxd5
{[%clk 0:01:15.8]} 22... Qxd5 {[%clk 0:00:42]} 23. Rc1 {[%clk 0:01:11.1]} 23...
Bd3 {[%clk 0:00:38.6]} 24. Qxe7 {[%clk 0:01:02.7]} 24... Bxf1 {[%clk 0:00:36.2]}
25. Rxf1 {[%clk 0:01:03.3]} 25... Qxb3 {[%clk 0:00:35.8]} 26. Bb4 {[%clk
0:00:55.2]} 26... Rd1 {[%clk 0:00:27.4]} 27. Rxd1 {[%clk 0:00:52.8]} 27... Qxd1+
{[%clk 0:00:27.9]} 28. Kh2 {[%clk 0:00:53.3]} 28... Qd5 {[%clk 0:00:24.8]} 29.
Kg1 {[%clk 0:00:47.8]} 29... a5 {[%clk 0:00:20.9]} 30. Bc5 {[%clk 0:00:44.8]}
30... Bf8 {[%clk 0:00:20.4]} 31. Qf6 {[%clk 0:00:23.1]} 31... Bxc5 {[%clk
0:00:17.7]} 32. Ng5 {[%clk 0:00:23.7]} 32... Qd1+ {[%clk 0:00:14.9]} 33. Kh2
{[%clk 0:00:23.3]} 33... Qd6+ {[%clk 0:00:15.8]} 34. Qxd6 {[%clk 0:00:22.2]}
34... Bxd6+ {[%clk 0:00:16.7]} 35. g3 {[%clk 0:00:22.2]} 35... Bxa3 {[%clk
0:00:16.9]} 36. Ne4 {[%clk 0:00:21]} 36... Be7 {[%clk 0:00:17.1]} 37. Kg2 {[%clk
0:00:18.9]} 37... a4 {[%clk 0:00:16.7]} 0-1

[Event "Late-Titled-Tuesday-Blitz-January-16-2024"]
[Site "Chess.com"]
[Date "2024.01.16"]
[Round "2"]
[White "Tejas_Rama"]
[Black "youngdinousaur"]
[Result "1-0"]
[WhiteElo "2584"]
[BlackElo "2344"]
[TimeControl "180+1"]
[EndTime "14:17:48 PST"]
[Termination "Tejas_Rama won by resignation"]

1. d4 {[%clk 0:03:00.9]} 1... Nf6 {[%clk 0:02:59.3]} 2. c4 {[%clk 0:03:00.6]}
2... e6 {[%clk 0:03:00.1]} 3. Nf3 {[%clk 0:03:01.2]} 3... d5 {[%clk 0:03:00.5]}
4. Nc3 {[%clk 0:02:50.4]} 4... Bb4 {[%clk 0:03:00.5]} 5. cxd5 {[%clk 0:02:50.4]}
5... exd5 {[%clk 0:03:00.3]} 6. Bg5 {[%clk 0:02:50.4]} 6... Nbd7 {[%clk
0:03:00.7]} 7. Qc2 {[%clk 0:02:46.6]} 7... c5 {[%clk 0:02:59.8]} 8. e3 {[%clk
0:02:46]} 8... Qa5 {[%clk 0:03:00.3]} 9. Bd3 {[%clk 0:02:41.2]} 9... c4 {[%clk
0:02:57.5]} 10. Bf5 {[%clk 0:02:39.4]} 10... g6 {[%clk 0:02:51.6]} 11. Bxd7+
{[%clk 0:02:26.8]} 11... Nxd7 {[%clk 0:02:51.2]} 12. e4 {[%clk 0:02:22.6]} 12...
Bxc3+ {[%clk 0:02:48.6]} 13. bxc3 {[%clk 0:02:22]} 13... O-O {[%clk 0:02:44.2]}
14. e5 {[%clk 0:01:51.8]} 14... f6 {[%clk 0:02:38.2]} 15. exf6 {[%clk
0:01:39.1]} 15... Nxf6 {[%clk 0:02:39.1]} 16. Bxf6 {[%clk 0:01:39.3]} 16... Rxf6
{[%clk 0:02:37.9]} 17. O-O {[%clk 0:01:39.8]} 17... Bf5 {[%clk 0:02:34.9]} 18.
Qb2 {[%clk 0:01:35.6]} 18... Rb6 {[%clk 0:02:33.3]} 19. Qd2 {[%clk 0:01:33.2]}
19... Re8 {[%clk 0:02:31.6]} 20. Ne5 {[%clk 0:01:31.6]} 20... Qa3 {[%clk
0:02:25.4]} 21. g4 {[%clk 0:01:19.7]} 21... Rb2 {[%clk 0:02:15.5]} 22. Qg5
{[%clk 0:00:55.6]} 22... Bc2 {[%clk 0:02:02.5]} 23. Nd7 {[%clk 0:00:38]} 23...
Qe7 {[%clk 0:01:49.3]} 24. Qxd5+ {[%clk 0:00:22]} 24... Qe6 {[%clk 0:01:36.8]}
25. Qxe6+ {[%clk 0:00:11.4]} 25... Rxe6 {[%clk 0:01:37.7]} 26. Ne5 {[%clk
0:00:12.3]} 26... Bd3 {[%clk 0:01:30.3]} 27. Rfd1 {[%clk 0:00:12.6]} 27... Be4
{[%clk 0:01:15.4]} 28. Nxc4 {[%clk 0:00:11.7]} 28... Rc2 {[%clk 0:01:14.3]} 29.
Rdc1 {[%clk 0:00:11.3]} 29... Rc6 {[%clk 0:01:11.2]} 30. Rxc2 {[%clk 0:00:10]}
30... Bxc2 {[%clk 0:01:10.9]} 31. Ne3 {[%clk 0:00:09.6]} 31... Be4 {[%clk
0:00:57.8]} 32. c4 {[%clk 0:00:09.5]} 32... Rb6 {[%clk 0:00:52.1]} 33. c5 {[%clk
0:00:08]} 33... Rb2 {[%clk 0:00:51.5]} 34. Rd1 {[%clk 0:00:07.3]} 34... Kf7
{[%clk 0:00:50.5]} 35. d5 {[%clk 0:00:07.4]} 35... Ke7 {[%clk 0:00:50.9]} 36.
d6+ {[%clk 0:00:07.7]} 36... Kd7 {[%clk 0:00:51.2]} 37. Nc4 {[%clk 0:00:08]}
37... Rxa2 {[%clk 0:00:48.1]} 38. Ne5+ {[%clk 0:00:08.3]} 38... Ke6 {[%clk
0:00:39.3]} 39. d7 {[%clk 0:00:08.4]} 39... Kxe5 {[%clk 0:00:36]} 40. d8=Q
{[%clk 0:00:08.5]} 40... Bf3 {[%clk 0:00:35.8]} 41. Qd6+ {[%clk 0:00:07.7]}
41... Ke4 {[%clk 0:00:36.1]} 42. Qe6+ {[%clk 0:00:07.8]} 42... Kf4 {[%clk
0:00:33.7]} 43. Rd4+ {[%clk 0:00:06.7]} 43... Kg5 {[%clk 0:00:33.8]} 44. Qxa2
{[%clk 0:00:06.5]} 1-0

[Event "Late-Titled-Tuesday-Blitz-January-16-2024"]
[Site "Chess.com"]
[Date "2024.01.16"]
[Round "2"]
[White "Igor_Lysyj"]
[Black "JG-17"]
[Result "1-0"]
[WhiteElo "2866"]
[BlackElo "2464"]
[TimeControl "180+1"]
[EndTime "14:17:49 PST"]
[Termination "Igor_Lysyj won by resignation"]

1. d4 {[%clk 0:03:00]} 1... d5 {[%clk 0:03:00]} 2. c4 {[%clk 0:02:59.9]} 2... e6
{[%clk 0:03:00.4]} 3. Nf3 {[%clk 0:02:59.7]} 3... Nf6 {[%clk 0:02:59.6]} 4. g3
{[%clk 0:02:59.9]} 4... Be7 {[%clk 0:02:57.7]} 5. Bg2 {[%clk 0:02:59.9]} 5...
O-O {[%clk 0:02:58.5]} 6. O-O {[%clk 0:02:59.5]} 6... dxc4 {[%clk 0:02:59.2]} 7.
Ne5 {[%clk 0:02:59.2]} 7... Nc6 {[%clk 0:02:58.9]} 8. Nxc6 {[%clk 0:02:58.1]}
8... bxc6 {[%clk 0:02:59.8]} 9. Na3 {[%clk 0:02:58.3]} 9... Bxa3 {[%clk
0:02:58.7]} 10. bxa3 {[%clk 0:02:58.4]} 10... Ba6 {[%clk 0:02:59.2]} 11. Bxc6
{[%clk 0:02:52.6]} 11... Rb8 {[%clk 0:02:58.8]} 12. Qa4 {[%clk 0:02:51.1]} 12...
Qc8 {[%clk 0:02:57.1]} 13. Bg5 {[%clk 0:02:48.2]} 13... Rb6 {[%clk 0:02:32.2]}
14. Bxf6 {[%clk 0:02:38.3]} 14... gxf6 {[%clk 0:02:33.1]} 15. e4 {[%clk
0:02:30.1]} 15... Bb7 {[%clk 0:02:11.3]} 16. Bxb7 {[%clk 0:02:16.9]} 16... Qxb7
{[%clk 0:02:12.2]} 17. Qxc4 {[%clk 0:02:17]} 17... Qxe4 {[%clk 0:02:11.3]} 18.
Qxc7 {[%clk 0:02:16.1]} 18... Ra6 {[%clk 0:01:58.3]} 19. Qc5 {[%clk 0:01:36.4]}
19... Rd8 {[%clk 0:01:43.9]} 20. Rad1 {[%clk 0:01:35.3]} 20... Rad6 {[%clk
0:01:39.8]} 21. Rfe1 {[%clk 0:01:31.6]} 21... Qd5 {[%clk 0:01:28.5]} 22. Qxa7
{[%clk 0:01:29.2]} 22... Qxa2 {[%clk 0:01:24]} 23. Qe7 {[%clk 0:01:23.9]} 23...
f5 {[%clk 0:00:43.6]} 24. d5 {[%clk 0:01:05.2]} 24... Rxd5 {[%clk 0:00:37.6]}
25. Qxd8+ {[%clk 0:01:04.5]} 25... Rxd8 {[%clk 0:00:35.9]} 26. Rxd8+ {[%clk
0:01:04.4]} 26... Kg7 {[%clk 0:00:36.8]} 27. Re3 {[%clk 0:01:03.2]} 27... Qc2
{[%clk 0:00:24.6]} 28. Rd4 {[%clk 0:00:53.1]} 28... Qc1+ {[%clk 0:00:23.4]} 29.
Kg2 {[%clk 0:00:51.5]} 29... Qc6+ {[%clk 0:00:24]} 30. Kf1 {[%clk 0:00:46.1]}
30... Qc1+ {[%clk 0:00:24.1]} 31. Ke2 {[%clk 0:00:43.8]} 31... Qc2+ {[%clk
0:00:23.3]} 32. Rd2 {[%clk 0:00:43.7]} 32... Qc4+ {[%clk 0:00:23.5]} 33. Ke1
{[%clk 0:00:37.7]} 33... Qc1+ {[%clk 0:00:20.6]} 34. Rd1 {[%clk 0:00:37.8]}
34... Qc4 {[%clk 0:00:20.8]} 35. Ra1 {[%clk 0:00:31]} 35... f4 {[%clk
0:00:18.5]} 36. gxf4 {[%clk 0:00:30.2]} 36... Qxf4 {[%clk 0:00:18.6]} 37. h3
{[%clk 0:00:30.2]} 37... Qa4 {[%clk 0:00:15.5]} 38. Kf1 {[%clk 0:00:28.6]} 38...
f5 {[%clk 0:00:15.7]} 39. Kg1 {[%clk 0:00:25.6]} 39... e5 {[%clk 0:00:14.2]} 40.
Rxe5 {[%clk 0:00:24.4]} 40... Qf4 {[%clk 0:00:11.4]} 41. Re3 {[%clk 0:00:23]}
41... Qg5+ {[%clk 0:00:09.7]} 42. Rg3 {[%clk 0:00:23]} 1-0

[Event "Late-Titled-Tuesday-Blitz-January-16-2024"]
[Site "Chess.com"]
[Date "2024.01.16"]
[Round "2"]
[White "MeisterJabo"]
[Black "Nouali_Mohamed"]
[Result "0-1"]
[WhiteElo "2267"]
[BlackElo "2548"]
[TimeControl "180+1"]
[EndTime "14:17:50 PST"]
[Termination "Nouali_Mohamed won on time"]

1. c4 {[%clk 0:03:00.1]} 1... Nf6 {[%clk 0:02:59.4]} 2. g3 {[%clk 0:02:59.9]}
2... g6 {[%clk 0:02:59.2]} 3. Bg2 {[%clk 0:03:00.4]} 3... Bg7 {[%clk 0:03:00.1]}
4. Nc3 {[%clk 0:03:01]} 4... O-O {[%clk 0:03:00.5]} 5. d4 {[%clk 0:03:01.5]}
5... d6 {[%clk 0:03:01]} 6. Nf3 {[%clk 0:03:02]} 6... c5 {[%clk 0:03:01.6]} 7.
O-O {[%clk 0:03:01.5]} 7... cxd4 {[%clk 0:03:01.3]} 8. Nxd4 {[%clk 0:03:02.4]}
8... Nc6 {[%clk 0:03:02.2]} 9. Nxc6 {[%clk 0:03:01]} 9... bxc6 {[%clk 0:03:03]}
10. Bxc6 {[%clk 0:03:01.6]} 10... Bh3 {[%clk 0:03:03.2]} 11. Bg2 {[%clk
0:03:00.5]} 11... Bxg2 {[%clk 0:03:02.8]} 12. Kxg2 {[%clk 0:03:01.4]} 12... Rc8
{[%clk 0:03:03.7]} 13. Be3 {[%clk 0:02:56.2]} 13... Rxc4 {[%clk 0:03:01.6]} 14.
Kg1 {[%clk 0:02:54.5]} 14... Qa5 {[%clk 0:02:40]} 15. a3 {[%clk 0:02:47]} 15...
Rb8 {[%clk 0:02:34.6]} 16. b4 {[%clk 0:02:45.4]} 16... Qh5 {[%clk 0:02:33.6]}
17. Na4 {[%clk 0:02:22.6]} 17... Ng4 {[%clk 0:02:13.6]} 18. h4 {[%clk
0:02:22.5]} 18... Nxe3 {[%clk 0:02:05.9]} 19. fxe3 {[%clk 0:02:16.9]} 19... Bxa1
{[%clk 0:01:57.1]} 20. Qxa1 {[%clk 0:02:16.6]} 20... Qxe2 {[%clk 0:01:53.6]} 21.
Qe1 {[%clk 0:02:13]} 21... Qc2 {[%clk 0:01:35.1]} 22. Qd1 {[%clk 0:02:10.3]}
22... a5 {[%clk 0:01:32.7]} 23. Qd5 {[%clk 0:01:58]} 23... e6 {[%clk 0:01:14.4]}
24. Qxd6 {[%clk 0:01:56.3]} 24... Rf8 {[%clk 0:01:09.1]} 25. Nc5 {[%clk
0:01:45.8]} 25... Qc3 {[%clk 0:00:44.2]} 26. Nd7 {[%clk 0:00:32.8]} 26... Rd8
{[%clk 0:00:34.4]} 27. Qe7 {[%clk 0:00:17.3]} 27... Qxe3+ {[%clk 0:00:33]} 28.
Kg2 {[%clk 0:00:15.9]} 28... Qe4+ {[%clk 0:00:20.4]} 29. Rf3 {[%clk 0:00:04.4]}
29... Rc2+ {[%clk 0:00:14]} 30. Kh3 {[%clk 0:00:04.6]} 30... Rxd7 {[%clk
0:00:11.3]} 0-1

[Event "Late-Titled-Tuesday-Blitz-January-16-2024"]
[Site "Chess.com"]
[Date "2024.01.16"]
[Round "2"]
[White "nfds"]
[Black "Rgoltsman"]
[Result "1-0"]
[WhiteElo "2505"]
[BlackElo "2195"]
[TimeControl "180+1"]
[EndTime "14:17:50 PST"]
[Termination "nfds won on time"]

1. b3 {[%clk 0:03:00.9]} 1... e5 {[%clk 0:02:59.3]} 2. Bb2 {[%clk 0:02:58.5]}
2... e4 {[%clk 0:02:59.8]} 3. d3 {[%clk 0:02:52.1]} 3... f5 {[%clk 0:02:57.4]}
4. dxe4 {[%clk 0:02:49.6]} 4... fxe4 {[%clk 0:02:58.3]} 5. Qd5 {[%clk
0:02:41.1]} 5... Qe7 {[%clk 0:02:50.8]} 6. Nd2 {[%clk 0:02:29.4]} 6... Nf6
{[%clk 0:02:49.8]} 7. Bxf6 {[%clk 0:02:28.5]} 7... Qxf6 {[%clk 0:02:45.7]} 8.
Qxe4+ {[%clk 0:02:28]} 8... Be7 {[%clk 0:02:46.1]} 9. O-O-O {[%clk 0:02:22.9]}
9... d5 {[%clk 0:02:23.6]} 10. Qe3 {[%clk 0:02:13.2]} 10... O-O {[%clk
0:02:05.9]} 11. Kb1 {[%clk 0:02:08]} 11... Ba3 {[%clk 0:02:05.7]} 12. c3 {[%clk
0:02:08.1]} 12... Bf5+ {[%clk 0:02:00]} 13. Ka1 {[%clk 0:02:07.8]} 13... Nc6
{[%clk 0:01:53.2]} 14. Nb1 {[%clk 0:02:02.1]} 14... Rae8 {[%clk 0:01:29.8]} 15.
Qd2 {[%clk 0:01:59.3]} 15... Bb4 {[%clk 0:01:23.3]} 16. Rc1 {[%clk 0:01:57.9]}
16... Ba5 {[%clk 0:01:05.5]} 17. e3 {[%clk 0:01:51.1]} 17... Bxb1 {[%clk
0:01:00.1]} 18. Kxb1 {[%clk 0:01:48.5]} 18... Qxf2 {[%clk 0:01:01]} 19. Qxd5+
{[%clk 0:01:41.9]} 19... Kh8 {[%clk 0:01:00.6]} 20. Nf3 {[%clk 0:01:36.9]} 20...
Rxe3 {[%clk 0:00:56.7]} 21. Rc2 {[%clk 0:00:53]} 21... Re1+ {[%clk 0:00:33.8]}
22. Nxe1 {[%clk 0:00:43.8]} 22... Qxe1+ {[%clk 0:00:32.2]} 23. Rc1 {[%clk
0:00:44]} 23... Qe3 {[%clk 0:00:24.2]} 24. Qd3 {[%clk 0:00:40.8]} 24... Qe5
{[%clk 0:00:20.4]} 25. Be2 {[%clk 0:00:37.2]} 25... Rd8 {[%clk 0:00:20.2]} 26.
Qc2 {[%clk 0:00:34.6]} 26... Qg5 {[%clk 0:00:17.4]} 27. Rcd1 {[%clk 0:00:24.8]}
27... Re8 {[%clk 0:00:17.3]} 28. Bf3 {[%clk 0:00:23.2]} 28... Ne5 {[%clk
0:00:15.6]} 29. Rd5 {[%clk 0:00:22.6]} 29... Qf6 {[%clk 0:00:15.3]} 30. Rhd1
{[%clk 0:00:22.1]} 30... Nxf3 {[%clk 0:00:14.6]} 31. gxf3 {[%clk 0:00:23]} 31...
Qxf3 {[%clk 0:00:14.5]} 32. Rd8 {[%clk 0:00:20]} 32... Qe3 {[%clk 0:00:13.9]}
33. Qd3 {[%clk 0:00:18.4]} 33... Qe6 {[%clk 0:00:09.9]} 34. Qd7 {[%clk
0:00:17.8]} 34... Qe4+ {[%clk 0:00:09.1]} 35. Kb2 {[%clk 0:00:17.4]} 35... Rg8
{[%clk 0:00:05.7]} 36. Rxg8+ {[%clk 0:00:16.6]} 36... Kxg8 {[%clk 0:00:06.6]}
37. Qd8+ {[%clk 0:00:15.3]} 37... Kf7 {[%clk 0:00:06.4]} 38. Qd7+ {[%clk
0:00:15]} 38... Kg6 {[%clk 0:00:03.2]} 39. Rg1+ {[%clk 0:00:14.5]} 1-0

[Event "Late-Titled-Tuesday-Blitz-January-16-2024"]
[Site "Chess.com"]
[Date "2024.01.16"]
[Round "2"]
[White "DenizG123"]
[Black "RaugintaBulba"]
[Result "1-0"]
[WhiteElo "2101"]
[BlackElo "2439"]
[TimeControl "180+1"]
[EndTime "14:17:50 PST"]
[Termination "DenizG123 won on time"]

1. e4 {[%clk 0:03:00.9]} 1... e6 {[%clk 0:02:53.4]} 2. d4 {[%clk 0:03:00.7]}
2... d5 {[%clk 0:02:52.7]} 3. Nd2 {[%clk 0:03:01.3]} 3... c5 {[%clk 0:02:52]} 4.
Ngf3 {[%clk 0:03:01.3]} 4... Nc6 {[%clk 0:02:44.9]} 5. Bb5 {[%clk 0:02:55.2]}
5... Nf6 {[%clk 0:02:36.6]} 6. e5 {[%clk 0:02:54.3]} 6... Nd7 {[%clk 0:02:35.7]}
7. c3 {[%clk 0:02:46.1]} 7... Qb6 {[%clk 0:02:22.8]} 8. a4 {[%clk 0:02:18]} 8...
cxd4 {[%clk 0:02:15]} 9. cxd4 {[%clk 0:02:18]} 9... Nxd4 {[%clk 0:02:11.7]} 10.
Nxd4 {[%clk 0:02:17.2]} 10... Qxd4 {[%clk 0:02:12.6]} 11. O-O {[%clk 0:02:16.7]}
11... Be7 {[%clk 0:01:53.5]} 12. Qh5 {[%clk 0:02:02.8]} 12... O-O {[%clk
0:01:38.9]} 13. Nf3 {[%clk 0:02:00.2]} 13... Qe4 {[%clk 0:01:35.8]} 14. Ra3
{[%clk 0:01:52.2]} 14... Bxa3 {[%clk 0:01:33.1]} 15. bxa3 {[%clk 0:01:51.8]}
15... a6 {[%clk 0:01:27.8]} 16. Re1 {[%clk 0:01:50.7]} 16... Qg6 {[%clk
0:01:26.9]} 17. Qxg6 {[%clk 0:01:44]} 17... hxg6 {[%clk 0:01:27.8]} 18. Bf1
{[%clk 0:01:44.5]} 18... Nc5 {[%clk 0:01:24.6]} 19. a5 {[%clk 0:01:42.7]} 19...
Bd7 {[%clk 0:01:23.7]} 20. Be3 {[%clk 0:01:39.1]} 20... Rfc8 {[%clk 0:01:22.9]}
21. Rb1 {[%clk 0:01:32.8]} 21... Ba4 {[%clk 0:00:57.2]} 22. Ng5 {[%clk
0:01:02.4]} 22... Rab8 {[%clk 0:00:24.5]} 23. Rb4 {[%clk 0:01:02.3]} 23... Bc2
{[%clk 0:00:14.9]} 24. h3 {[%clk 0:01:02.5]} 24... Bd3 {[%clk 0:00:13.5]} 25.
Bxc5 {[%clk 0:00:55.1]} 25... Bxf1 {[%clk 0:00:13]} 26. Bd6 {[%clk 0:00:54.7]}
26... Bb5 {[%clk 0:00:06.2]} 27. Bxb8 {[%clk 0:00:51]} 27... Rxb8 {[%clk
0:00:07.1]} 28. a4 {[%clk 0:00:44.8]} 28... Bc6 {[%clk 0:00:07.4]} 29. Nf3
{[%clk 0:00:45.1]} 29... Rc8 {[%clk 0:00:06.4]} 30. Nd4 {[%clk 0:00:44.9]} 30...
Kf8 {[%clk 0:00:04.5]} 31. Nxc6 {[%clk 0:00:25.1]} 31... bxc6 {[%clk 0:00:04.6]}
32. Rb6 {[%clk 0:00:25.8]} 32... c5 {[%clk 0:00:05]} 33. Kf1 {[%clk 0:00:26.3]}
33... c4 {[%clk 0:00:04.3]} 34. Ke1 {[%clk 0:00:23]} 34... d4 {[%clk 0:00:03.6]}
35. Rxa6 {[%clk 0:00:18.7]} 35... d3 {[%clk 0:00:03.3]} 36. Kd2 {[%clk
0:00:18.1]} 36... c3+ {[%clk 0:00:02.1]} 37. Kc1 {[%clk 0:00:18.5]} 37... d2+
{[%clk 0:00:02.2]} 38. Kc2 {[%clk 0:00:18.4]} 38... Rd8 {[%clk 0:00:01.7]} 39.
Rd6 {[%clk 0:00:19]} 39... Rb8 {[%clk 0:00:01]} 40. Kxc3 {[%clk 0:00:18]} 1-0

[Event "Late-Titled-Tuesday-Blitz-January-16-2024"]
[Site "Chess.com"]
[Date "2024.01.16"]
[Round "2"]
[White "mortngabriel"]
[Black "imdarealist"]
[Result "1-0"]
[WhiteElo "2525"]
[BlackElo "2261"]
[TimeControl "180+1"]
[EndTime "14:17:53 PST"]
[Termination "mortngabriel won by checkmate"]

1. e4 {[%clk 0:03:00.9]} 1... e5 {[%clk 0:02:50.6]} 2. Nc3 {[%clk 0:03:00.7]}
2... Nc6 {[%clk 0:02:37.7]} 3. Bc4 {[%clk 0:03:00.2]} 3... Bb4 {[%clk
0:02:35.8]} 4. Nge2 {[%clk 0:02:59.8]} 4... Nf6 {[%clk 0:02:35]} 5. O-O {[%clk
0:02:59.6]} 5... Bxc3 {[%clk 0:02:33.3]} 6. Nxc3 {[%clk 0:02:59.6]} 6... d6
{[%clk 0:02:33.3]} 7. d3 {[%clk 0:02:59.5]} 7... h6 {[%clk 0:02:31.9]} 8. f4
{[%clk 0:02:58.3]} 8... exf4 {[%clk 0:02:32.3]} 9. Bxf4 {[%clk 0:02:57.5]} 9...
O-O {[%clk 0:02:32.5]} 10. d4 {[%clk 0:02:53.7]} 10... Bg4 {[%clk 0:02:28.8]}
11. Qd2 {[%clk 0:02:44.9]} 11... Nh7 {[%clk 0:02:04.2]} 12. Rae1 {[%clk
0:02:33.5]} 12... Ne7 {[%clk 0:01:52.9]} 13. Re3 {[%clk 0:02:13.1]} 13... Be6
{[%clk 0:01:52.3]} 14. Bd3 {[%clk 0:01:56.4]} 14... Ng6 {[%clk 0:01:51.3]} 15.
Rg3 {[%clk 0:01:50.7]} 15... Nxf4 {[%clk 0:01:47.9]} 16. Qxf4 {[%clk 0:01:49.9]}
16... Kh8 {[%clk 0:01:46.6]} 17. e5 {[%clk 0:01:45.2]} 17... dxe5 {[%clk
0:01:41.4]} 18. Qxe5 {[%clk 0:01:30.6]} 18... Rg8 {[%clk 0:01:36.3]} 19. Qe4
{[%clk 0:01:22.1]} 19... g6 {[%clk 0:01:29]} 20. Qe5+ {[%clk 0:01:04.2]} 20...
Rg7 {[%clk 0:01:28.6]} 21. Bxg6 {[%clk 0:00:58.8]} 21... fxg6 {[%clk 0:01:29.5]}
22. Rxg6 {[%clk 0:00:56.4]} 22... Qg8 {[%clk 0:01:25.9]} 23. Rxe6 {[%clk
0:00:53.1]} 23... Rf8 {[%clk 0:01:20.7]} 24. Rxf8 {[%clk 0:00:51.4]} 24... Nxf8
{[%clk 0:01:20.7]} 25. Rxh6+ {[%clk 0:00:50.3]} 25... Nh7 {[%clk 0:01:20.1]} 26.
Rxh7+ {[%clk 0:00:49.6]} 26... Qxh7 {[%clk 0:01:17.4]} 27. Ne4 {[%clk
0:00:46.8]} 27... Qg6 {[%clk 0:01:09.3]} 28. g3 {[%clk 0:00:42]} 28... Kg8
{[%clk 0:00:35.1]} 29. h4 {[%clk 0:00:41.5]} 29... Rf7 {[%clk 0:00:28.1]} 30.
Ng5 {[%clk 0:00:28.2]} 30... Rf8 {[%clk 0:00:24.7]} 31. Qxc7 {[%clk 0:00:21.3]}
31... Qf5 {[%clk 0:00:18.9]} 32. Kh2 {[%clk 0:00:16.8]} 32... Qf2+ {[%clk
0:00:17.4]} 33. Kh3 {[%clk 0:00:17.4]} 33... Qf1+ {[%clk 0:00:17.6]} 34. Kg4
{[%clk 0:00:17.7]} 34... Qf5+ {[%clk 0:00:17.3]} 35. Kh5 {[%clk 0:00:18]} 35...
Kh8 {[%clk 0:00:08.9]} 36. Qe7 {[%clk 0:00:15.9]} 36... Kg8 {[%clk 0:00:06]} 37.
g4 {[%clk 0:00:15.8]} 37... Qf6 {[%clk 0:00:04.8]} 38. Qh7# {[%clk 0:00:15.6]}
1-0